[Event "*** Titled Tuesday Blitz"]
[Site "Chess.com"]
[Date "2020.04.21"]
[Round "2"]
[White "afgano29"]
[Black "Galileo22"]
[Result "1-0"]
[WhiteElo "2649"]
[BlackElo "2324"]
[TimeControl "180+1"]
[EndTime "10:18:57 PDT"]
[Termination "afgano29 won by resignation"]

1. e4 {[%clk 0:03:00.9]} 1... e5 {[%clk 0:02:56]} 2. Nf3 {[%clk 0:02:59.9]} 2...
Nc6 {[%clk 0:02:56.6]} 3. Bb5 {[%clk 0:03:00.3]} 3... Nf6 {[%clk 0:02:55.6]} 4.
d3 {[%clk 0:03:00.6]} 4... Bc5 {[%clk 0:02:54.5]} 5. c3 {[%clk 0:03:00.6]} 5...
Qe7 {[%clk 0:02:48.8]} 6. O-O {[%clk 0:02:59.1]} 6... a6 {[%clk 0:02:26.8]} 7.
Ba4 {[%clk 0:02:57.6]} 7... b5 {[%clk 0:02:14.2]} 8. Bb3 {[%clk 0:02:51.3]} 8...
d6 {[%clk 0:02:07.7]} 9. d4 {[%clk 0:02:41.1]} 9... Bb6 {[%clk 0:02:04.4]} 10.
h3 {[%clk 0:02:38.9]} 10... h6 {[%clk 0:02:03.9]} 11. a4 {[%clk 0:02:38.2]}
11... Bb7 {[%clk 0:01:51.7]} 12. Re1 {[%clk 0:02:19.5]} 12... g5 {[%clk
0:01:45.5]} 13. axb5 {[%clk 0:02:12.3]} 13... axb5 {[%clk 0:01:44.3]} 14. Rxa8+
{[%clk 0:02:12.7]} 14... Bxa8 {[%clk 0:01:44.9]} 15. Na3 {[%clk 0:02:12.8]}
15... Rg8 {[%clk 0:01:22.1]} 16. Nxb5 {[%clk 0:02:09.7]} 16... Nd7 {[%clk
0:01:05]} 17. Nh2 {[%clk 0:02:05.3]} 17... Rg6 {[%clk 0:00:40.4]} 18. Ba4 {[%clk
0:01:54.8]} 18... Kf8 {[%clk 0:00:35]} 19. Be3 {[%clk 0:01:54.7]} 19... Kg8
{[%clk 0:00:28.5]} 20. Nf1 {[%clk 0:01:54.1]} 20... exd4 {[%clk 0:00:16.5]} 21.
Bxd4 {[%clk 0:01:51]} 21... Bb7 {[%clk 0:00:11.1]} 22. Ng3 {[%clk 0:01:50]}
22... Nce5 {[%clk 0:00:09.1]} 23. Nf5 {[%clk 0:01:48.5]} 23... Qf8 {[%clk
0:00:09.2]} 24. Bxb6 {[%clk 0:01:30.9]} 24... Nxb6 {[%clk 0:00:10.1]} 25. Nxc7
{[%clk 0:01:29.9]} 25... g4 {[%clk 0:00:09.4]} 26. hxg4 {[%clk 0:01:27.1]} 26...
Nxg4 {[%clk 0:00:07.8]} 27. Bb3 {[%clk 0:01:23.4]} 27... Ne5 {[%clk 0:00:06.7]}
28. Nd5 {[%clk 0:01:17.4]} 28... Nbd7 {[%clk 0:00:06.3]} 29. Nde7+ {[%clk
0:01:16.3]} 29... Kh7 {[%clk 0:00:05.7]} 30. Nxg6 {[%clk 0:01:14.4]} 30... fxg6
{[%clk 0:00:06.6]} 31. Nxd6 {[%clk 0:01:11.1]} 31... Ba6 {[%clk 0:00:06.4]} 32.
Qd4 {[%clk 0:01:03.1]} 32... Nd3 {[%clk 0:00:05.7]} 33. Ra1 {[%clk 0:01:03.5]}
33... N7c5 {[%clk 0:00:04.6]} 34. Rxa6 {[%clk 0:01:01.1]} 34... Nxa6 {[%clk
0:00:04.1]} 35. Qxd3 {[%clk 0:00:59.8]} 35... Nc5 {[%clk 0:00:05]} 36. Qd5
{[%clk 0:00:50.1]} 36... Nxb3 {[%clk 0:00:05.1]} 37. Qxb3 {[%clk 0:00:51]} 37...
Qxd6 {[%clk 0:00:04.6]} 38. Qd5 {[%clk 0:00:50.9]} 38... Qf4 {[%clk 0:00:04.7]}
39. g3 {[%clk 0:00:36.8]} 39... Qc1+ {[%clk 0:00:04.4]} 40. Kg2 {[%clk
0:00:37.1]} 40... Qxb2 {[%clk 0:00:05.3]} 41. c4 {[%clk 0:00:37.3]} 41... Qc2
{[%clk 0:00:05.6]} 42. c5 {[%clk 0:00:37.2]} 42... h5 {[%clk 0:00:06.1]} 43. c6
{[%clk 0:00:36.9]} 43... Kh6 {[%clk 0:00:06.5]} 44. e5 {[%clk 0:00:33.5]} 44...
h4 {[%clk 0:00:05.9]} 45. gxh4 {[%clk 0:00:33.1]} 45... Qe2 {[%clk 0:00:05.7]}
46. e6 {[%clk 0:00:28.2]} 46... Qg4+ {[%clk 0:00:05.5]} 47. Kf1 {[%clk
0:00:28.2]} 47... Qh3+ {[%clk 0:00:05.7]} 48. Ke2 {[%clk 0:00:25.1]} 48... Qg4+
{[%clk 0:00:05.6]} 49. f3 {[%clk 0:00:24.1]} 49... Qg2+ {[%clk 0:00:05.3]} 50.
Ke3 {[%clk 0:00:24.2]} 50... Qg1+ {[%clk 0:00:05.5]} 51. Ke4 {[%clk 0:00:23.8]}
51... Qe1+ {[%clk 0:00:05.2]} 52. Kd3 {[%clk 0:00:22.4]} 52... Qd1+ {[%clk
0:00:05.3]} 53. Kc4 {[%clk 0:00:22.5]} 53... Qc2+ {[%clk 0:00:05.6]} 54. Kd4
{[%clk 0:00:21.6]} 54... Qd2+ {[%clk 0:00:05.5]} 55. Ke5 {[%clk 0:00:21.8]}
55... Qe3+ {[%clk 0:00:05.5]} 56. Kd6 {[%clk 0:00:21]} 56... Qf4+ {[%clk
0:00:05.1]} 57. Qe5 {[%clk 0:00:20.2]} 57... Qb4+ {[%clk 0:00:04.7]} 58. Kd7
{[%clk 0:00:20.4]} 58... Qd2+ {[%clk 0:00:04.7]} 59. Qd6 {[%clk 0:00:19.9]}
59... Qe2 {[%clk 0:00:04.4]} 60. e7 {[%clk 0:00:19.2]} 60... Qxf3 {[%clk
0:00:04.6]} 61. e8=Q {[%clk 0:00:19]} 61... Qf5+ {[%clk 0:00:04.9]} 62. Qee6
{[%clk 0:00:19.1]} 62... Qxe6+ {[%clk 0:00:04.6]} 63. Qxe6 {[%clk 0:00:19]}
63... Kh5 {[%clk 0:00:05.5]} 64. Qf6 {[%clk 0:00:19.2]} 64... Kg4 {[%clk
0:00:05.1]} 65. Qg5+ {[%clk 0:00:19.5]} 65... Kh3 {[%clk 0:00:05]} 66. Ke6
{[%clk 0:00:20.4]} 66... Kh2 {[%clk 0:00:04.6]} 67. Kd5 {[%clk 0:00:21.3]} 67...
Kh1 {[%clk 0:00:05.5]} 68. Ke4 {[%clk 0:00:22.2]} 1-0

[Event "*** Titled Tuesday Blitz"]
[Site "Chess.com"]
[Date "2020.04.21"]
[Round "2"]
[White "Leonid_Starozhilov"]
[Black "ItsCheckM8Mate"]
[Result "1-0"]
[WhiteElo "2633"]
[BlackElo "2232"]
[TimeControl "180+1"]
[EndTime "10:18:58 PDT"]
[Termination "Leonid_Starozhilov won by resignation"]

1. e4 {[%clk 0:03:00.9]} 1... e5 {[%clk 0:02:57.2]} 2. Nf3 {[%clk 0:03:00.7]}
2... Nc6 {[%clk 0:02:48.8]} 3. Bc4 {[%clk 0:02:59.4]} 3... Nf6 {[%clk
0:02:48.3]} 4. d3 {[%clk 0:02:58.8]} 4... h6 {[%clk 0:02:47.5]} 5. Nc3 {[%clk
0:02:58.2]} 5... d6 {[%clk 0:02:46.7]} 6. a3 {[%clk 0:02:57.2]} 6... g6 {[%clk
0:02:44.8]} 7. h3 {[%clk 0:02:54.8]} 7... Bg7 {[%clk 0:02:44.5]} 8. Be3 {[%clk
0:02:53.1]} 8... a6 {[%clk 0:02:35]} 9. Qd2 {[%clk 0:02:51.4]} 9... g5 {[%clk
0:02:29.2]} 10. Nd5 {[%clk 0:02:48.3]} 10... O-O {[%clk 0:02:25]} 11. g4 {[%clk
0:02:40]} 11... Nxd5 {[%clk 0:02:18.1]} 12. Bxd5 {[%clk 0:02:38.6]} 12... Ne7
{[%clk 0:02:17.3]} 13. Bb3 {[%clk 0:02:33.1]} 13... d5 {[%clk 0:02:09.1]} 14.
Bc5 {[%clk 0:02:21.5]} 14... c6 {[%clk 0:01:51]} 15. O-O-O {[%clk 0:02:07.9]}
15... b6 {[%clk 0:01:29.1]} 16. Bxe7 {[%clk 0:02:03.6]} 16... Qxe7 {[%clk
0:01:28.9]} 17. Rdg1 {[%clk 0:01:40.6]} 17... dxe4 {[%clk 0:01:16.3]} 18. dxe4
{[%clk 0:01:41.5]} 18... Qf6 {[%clk 0:01:16.2]} 19. Qe3 {[%clk 0:01:25.8]} 19...
Qf4 {[%clk 0:01:08.9]} 20. h4 {[%clk 0:01:05]} 20... Qxe3+ {[%clk 0:00:38.7]}
21. fxe3 {[%clk 0:01:04.8]} 21... Be6 {[%clk 0:00:39]} 22. hxg5 {[%clk
0:00:59.5]} 22... hxg5 {[%clk 0:00:36.6]} 23. Nxg5 {[%clk 0:00:52.7]} 23... Bxb3
{[%clk 0:00:32.9]} 24. cxb3 {[%clk 0:00:53.6]} 24... Rad8 {[%clk 0:00:26.9]} 25.
Kc2 {[%clk 0:00:23.7]} 25... Rd6 {[%clk 0:00:25.7]} 26. Nf3 {[%clk 0:00:18.7]}
26... Rf6 {[%clk 0:00:20.5]} 27. Rf1 {[%clk 0:00:11.5]} 27... Rd8 {[%clk
0:00:18.8]} 28. Nh4 {[%clk 0:00:08.6]} 28... Rfd6 {[%clk 0:00:14.2]} 29. Rh2
{[%clk 0:00:08.2]} 29... Rd3 {[%clk 0:00:10.4]} 30. Re2 {[%clk 0:00:08]} 30...
Bh6 {[%clk 0:00:09.1]} 31. Nf5 {[%clk 0:00:08.3]} 31... Bg5 {[%clk 0:00:07.9]}
32. Rff2 {[%clk 0:00:08.9]} 32... Rd1 {[%clk 0:00:03.5]} 33. Rd2 {[%clk
0:00:08.2]} 33... R1xd2+ {[%clk 0:00:01.7]} 34. Rxd2 {[%clk 0:00:09.1]} 34...
Rxd2+ {[%clk 0:00:01.8]} 35. Kxd2 {[%clk 0:00:09.6]} 35... Kf8 {[%clk
0:00:02.5]} 36. Kd3 {[%clk 0:00:10]} 36... Ke8 {[%clk 0:00:02.9]} 37. b4 {[%clk
0:00:10.4]} 37... Kd7 {[%clk 0:00:02.7]} 38. Kc4 {[%clk 0:00:10]} 38... Kc7
{[%clk 0:00:01.5]} 39. Kd3 {[%clk 0:00:07.7]} 39... Kd7 {[%clk 0:00:02]} 40. Ng7
{[%clk 0:00:06.9]} 40... Kc7 {[%clk 0:00:02.3]} 41. Nh5 {[%clk 0:00:06.7]} 41...
Kd7 {[%clk 0:00:02.5]} 42. Ng3 {[%clk 0:00:07.3]} 42... Kc7 {[%clk 0:00:02.5]}
43. Ne2 {[%clk 0:00:07.5]} 43... Kd7 {[%clk 0:00:02.7]} 44. Nc3 {[%clk 0:00:08]}
44... Kc7 {[%clk 0:00:03]} 45. b3 {[%clk 0:00:08.6]} 45... Kd6 {[%clk
0:00:03.3]} 46. a4 {[%clk 0:00:09.1]} 46... Kd7 {[%clk 0:00:03.4]} 47. b5 {[%clk
0:00:09.5]} 47... axb5 {[%clk 0:00:03.7]} 48. axb5 {[%clk 0:00:10.4]} 48... c5
{[%clk 0:00:04.1]} 49. Nd5 {[%clk 0:00:10.6]} 49... Bd8 {[%clk 0:00:02.6]} 50.
Ke2 {[%clk 0:00:10.8]} 50... Kd6 {[%clk 0:00:02]} 51. Kd3 {[%clk 0:00:09.5]}
51... Kd7 {[%clk 0:00:02.1]} 52. Kc4 {[%clk 0:00:10]} 52... Kd6 {[%clk
0:00:01.9]} 53. Nc3 {[%clk 0:00:10.4]} 53... Bg5 {[%clk 0:00:02]} 54. Na4 {[%clk
0:00:10.5]} 54... Kc7 {[%clk 0:00:01.5]} 55. Kd5 {[%clk 0:00:10.8]} 55... f6
{[%clk 0:00:01.7]} 56. Nb2 {[%clk 0:00:10.3]} 56... Bxe3 {[%clk 0:00:01.6]} 57.
Nc4 {[%clk 0:00:10.8]} 57... Bg5 {[%clk 0:00:01.7]} 58. Nd6 {[%clk 0:00:11.1]}
58... Bh4 {[%clk 0:00:01.4]} 59. Ne8+ {[%clk 0:00:11.2]} 59... Kb7 {[%clk
0:00:01.1]} 60. Ke6 {[%clk 0:00:10.5]} 60... Kc8 {[%clk 0:00:01.1]} 61. Nxf6
{[%clk 0:00:10.4]} 61... Kd8 {[%clk 0:00:01]} 62. Nd5 {[%clk 0:00:10.7]} 62...
Kc8 {[%clk 0:00:01.2]} 63. Nxb6+ {[%clk 0:00:11.1]} 63... Kb7 {[%clk 0:00:01.4]}
64. Nc4 {[%clk 0:00:12]} 1-0

[Event "*** Titled Tuesday Blitz"]
[Site "Chess.com"]
[Date "2020.04.21"]
[Round "2"]
[White "wadsy27"]
[Black "ZAbdumalik"]
[Result "0-1"]
[WhiteElo "2486"]
[BlackElo "2699"]
[TimeControl "180+1"]
[EndTime "10:18:59 PDT"]
[Termination "ZAbdumalik won by resignation"]

1. Nf3 {[%clk 0:03:00.9]} 1... Nf6 {[%clk 0:02:59.8]} 2. b3 {[%clk 0:03:00.4]}
2... g6 {[%clk 0:02:59.7]} 3. Bb2 {[%clk 0:03:00.3]} 3... Bg7 {[%clk 0:03:00.6]}
4. c4 {[%clk 0:02:59.3]} 4... O-O {[%clk 0:03:00]} 5. g3 {[%clk 0:02:59.2]} 5...
b6 {[%clk 0:02:57.4]} 6. Bg2 {[%clk 0:02:59.2]} 6... Bb7 {[%clk 0:02:58.3]} 7.
O-O {[%clk 0:02:59]} 7... c5 {[%clk 0:02:58.6]} 8. d4 {[%clk 0:02:58.8]} 8...
Ne4 {[%clk 0:02:58.3]} 9. Nbd2 {[%clk 0:02:51]} 9... d6 {[%clk 0:02:51.6]} 10.
Nxe4 {[%clk 0:02:42]} 10... Bxe4 {[%clk 0:02:51.2]} 11. Qd2 {[%clk 0:02:42.6]}
11... Nd7 {[%clk 0:02:46.3]} 12. Rad1 {[%clk 0:02:38.6]} 12... a6 {[%clk
0:02:41.3]} 13. h3 {[%clk 0:02:24.2]} 13... b5 {[%clk 0:02:34.9]} 14. dxc5
{[%clk 0:02:17.6]} 14... Bxb2 {[%clk 0:02:33.4]} 15. cxd6 {[%clk 0:02:10.3]}
15... Bg7 {[%clk 0:02:16.9]} 16. dxe7 {[%clk 0:02:09]} 16... Qxe7 {[%clk
0:02:17.4]} 17. Qxd7 {[%clk 0:02:07]} 17... Qa3 {[%clk 0:02:17.8]} 18. cxb5
{[%clk 0:01:56.6]} 18... axb5 {[%clk 0:02:17.9]} 19. Qxb5 {[%clk 0:01:55]} 19...
Qxa2 {[%clk 0:02:18.2]} 20. Nd4 {[%clk 0:01:42.2]} 20... Rab8 {[%clk 0:01:50]}
21. Qa4 {[%clk 0:01:28]} 21... Qxa4 {[%clk 0:01:49.5]} 22. bxa4 {[%clk
0:01:28.9]} 22... Bxg2 {[%clk 0:01:49.9]} 23. Kxg2 {[%clk 0:01:28.8]} 23... Rb4
{[%clk 0:01:50.8]} 24. e3 {[%clk 0:01:23.4]} 24... Rxa4 {[%clk 0:01:51.1]} 25.
Rd3 {[%clk 0:01:19.7]} 25... h5 {[%clk 0:01:49.8]} 26. Rfd1 {[%clk 0:01:17.2]}
26... Bf6 {[%clk 0:01:49.4]} 27. g4 {[%clk 0:01:14.2]} 27... hxg4 {[%clk
0:01:47.7]} 28. hxg4 {[%clk 0:01:14.4]} 28... Kg7 {[%clk 0:01:48.6]} 29. Kg3
{[%clk 0:01:08.4]} 29... Ra2 {[%clk 0:01:40.5]} 30. Nf3 {[%clk 0:01:04]} 30...
Rc8 {[%clk 0:01:32.4]} 31. g5 {[%clk 0:01:00.2]} 31... Be7 {[%clk 0:01:31.2]}
32. Rd7 {[%clk 0:00:58.3]} 32... Kf8 {[%clk 0:01:29.1]} 33. Rb7 {[%clk
0:00:55.9]} 33... Rc5 {[%clk 0:01:07]} 34. Rdd7 {[%clk 0:00:52.3]} 34... Bxg5
{[%clk 0:01:07.2]} 35. Rxf7+ {[%clk 0:00:51.2]} 35... Kg8 {[%clk 0:01:00.6]} 36.
Rg7+ {[%clk 0:00:49.2]} 36... Kh8 {[%clk 0:01:01.1]} 37. Rxg6 {[%clk 0:00:47.4]}
37... Bd8 {[%clk 0:00:55.6]} 38. Rb8 {[%clk 0:00:41.9]} 38... Kh7 {[%clk
0:00:55.5]} 39. Rg4 {[%clk 0:00:37]} 39... Bc7+ {[%clk 0:00:55.6]} 40. Kh4
{[%clk 0:00:32.1]} 40... Bxb8 {[%clk 0:00:54.3]} 41. Ng5+ {[%clk 0:00:32.6]}
41... Rxg5 {[%clk 0:00:48.4]} 42. Kxg5 {[%clk 0:00:30.6]} 42... Rxf2 {[%clk
0:00:49.3]} 43. e4 {[%clk 0:00:28.9]} 43... Bd6 {[%clk 0:00:46.8]} 44. Rg1
{[%clk 0:00:21]} 44... Kg7 {[%clk 0:00:42.3]} 45. Rd1 {[%clk 0:00:17.6]} 45...
Be7+ {[%clk 0:00:42]} 46. Kg4 {[%clk 0:00:17.6]} 46... Kf6 {[%clk 0:00:41]} 47.
Rd5 {[%clk 0:00:16.5]} 47... Ke6 {[%clk 0:00:39.6]} 48. Rf5 {[%clk 0:00:15.6]}
48... Re2 {[%clk 0:00:37]} 49. Kf3 {[%clk 0:00:15.7]} 49... Ra2 {[%clk
0:00:37.3]} 50. Rh5 {[%clk 0:00:15.6]} 50... Ra3+ {[%clk 0:00:37.1]} 51. Kf4
{[%clk 0:00:14.3]} 51... Bd6+ {[%clk 0:00:36.7]} 52. Kg4 {[%clk 0:00:14.5]}
52... Re3 {[%clk 0:00:34.7]} 53. Rh6+ {[%clk 0:00:11.8]} 53... Ke5 {[%clk
0:00:34]} 54. Rh5+ {[%clk 0:00:10.2]} 54... Kxe4 {[%clk 0:00:34.2]} 55. Rg5
{[%clk 0:00:08.7]} 55... Re1 {[%clk 0:00:29.6]} 56. Rg6 {[%clk 0:00:06.2]} 56...
Be5 {[%clk 0:00:29.5]} 57. Rg5 {[%clk 0:00:05.4]} 57... Bf4 {[%clk 0:00:26.5]}
58. Rg6 {[%clk 0:00:05.1]} 58... Rg1+ {[%clk 0:00:22]} 59. Kh5 {[%clk
0:00:05.2]} 59... Rh1+ {[%clk 0:00:22]} 60. Kg4 {[%clk 0:00:05.8]} 60... Rf1
{[%clk 0:00:21.8]} 61. Kh5 {[%clk 0:00:04.6]} 61... Be5 {[%clk 0:00:20.4]} 62.
Kg4 {[%clk 0:00:03.8]} 62... Rf2 {[%clk 0:00:20.3]} 63. Kh5 {[%clk 0:00:02.6]}
63... Kf5 {[%clk 0:00:19.4]} 64. Rg5+ {[%clk 0:00:02.8]} 64... Kf6 {[%clk
0:00:19.3]} 65. Rg6+ {[%clk 0:00:02.9]} 65... Kf7 {[%clk 0:00:19.8]} 66. Rg5
{[%clk 0:00:03]} 66... Bf6 {[%clk 0:00:20.2]} 67. Rg4 {[%clk 0:00:01.5]} 67...
Rh2+ {[%clk 0:00:20.2]} 0-1

[Event "*** Titled Tuesday Blitz"]
[Site "Chess.com"]
[Date "2020.04.21"]
[Round "2"]
[White "AndrewMaco"]
[Black "sergiochess83"]
[Result "1/2-1/2"]
[WhiteElo "2571"]
[BlackElo "2811"]
[TimeControl "180+1"]
[EndTime "10:19:02 PDT"]
[Termination "Game drawn - insufficient material"]

1. e4 {[%clk 0:03:00.9]} 1... c6 {[%clk 0:02:59.6]} 2. d4 {[%clk 0:02:59.4]}
2... d5 {[%clk 0:02:59.7]} 3. e5 {[%clk 0:02:59.8]} 3... Bf5 {[%clk 0:02:59.3]}
4. Nf3 {[%clk 0:02:59.4]} 4... e6 {[%clk 0:02:59.4]} 5. Be2 {[%clk 0:02:59.5]}
5... Ne7 {[%clk 0:02:59.3]} 6. c3 {[%clk 0:02:59.5]} 6... Ng6 {[%clk 0:02:55.8]}
7. O-O {[%clk 0:02:58.3]} 7... f6 {[%clk 0:02:54.3]} 8. Be3 {[%clk 0:02:30.3]}
8... Nd7 {[%clk 0:02:48.2]} 9. Nbd2 {[%clk 0:02:30.5]} 9... fxe5 {[%clk
0:02:35]} 10. dxe5 {[%clk 0:02:30.8]} 10... Ngxe5 {[%clk 0:02:21.1]} 11. Nd4
{[%clk 0:02:30.6]} 11... Bd6 {[%clk 0:02:09.9]} 12. f4 {[%clk 0:02:24.8]} 12...
Ng6 {[%clk 0:02:01.3]} 13. g4 {[%clk 0:02:24.4]} 13... O-O {[%clk 0:01:37.8]}
14. gxf5 {[%clk 0:02:23.4]} 14... exf5 {[%clk 0:01:38.7]} 15. Bd3 {[%clk
0:02:09]} 15... Nh4 {[%clk 0:01:34.9]} 16. N2f3 {[%clk 0:01:58.4]} 16... Qe8
{[%clk 0:01:20]} 17. Qe2 {[%clk 0:01:45.6]} 17... Nxf3+ {[%clk 0:01:12.8]} 18.
Qxf3 {[%clk 0:01:46.5]} 18... g6 {[%clk 0:01:08.7]} 19. Rae1 {[%clk 0:01:37]}
19... Nc5 {[%clk 0:01:08.9]} 20. Bc2 {[%clk 0:01:36.6]} 20... Ne4 {[%clk
0:01:08.6]} 21. Ne2 {[%clk 0:01:24.1]} 21... Qf7 {[%clk 0:01:07.2]} 22. c4
{[%clk 0:01:18.5]} 22... dxc4 {[%clk 0:01:03.3]} 23. Bxe4 {[%clk 0:01:13.5]}
23... fxe4 {[%clk 0:01:03.5]} 24. Qxe4 {[%clk 0:01:14.4]} 24... Rae8 {[%clk
0:01:03.6]} 25. Qf3 {[%clk 0:01:14.9]} 25... Qf5 {[%clk 0:00:56.1]} 26. Bd4
{[%clk 0:00:53.7]} 26... Qd3 {[%clk 0:00:47.9]} 27. Bc3 {[%clk 0:00:15.2]} 27...
Bc5+ {[%clk 0:00:47.4]} 28. Kg2 {[%clk 0:00:13.9]} 28... Re3 {[%clk 0:00:47.5]}
29. Qg4 {[%clk 0:00:14.2]} 29... Qe4+ {[%clk 0:00:42.9]} 30. Rf3 {[%clk
0:00:12.3]} 30... Rxe2+ {[%clk 0:00:42.5]} 31. Rxe2 {[%clk 0:00:11]} 31... Qxe2+
{[%clk 0:00:42.7]} 32. Kh3 {[%clk 0:00:11.9]} 32... Qe4 {[%clk 0:00:38.9]} 33.
Rf1 {[%clk 0:00:07.1]} 33... Qf5 {[%clk 0:00:32.3]} 34. Re1 {[%clk 0:00:02.7]}
34... Qxg4+ {[%clk 0:00:23.6]} 35. Kxg4 {[%clk 0:00:03.6]} 35... Kf7 {[%clk
0:00:24.4]} 36. Re5 {[%clk 0:00:03.1]} 36... Bd6 {[%clk 0:00:22]} 37. Re4 {[%clk
0:00:03.6]} 37... b5 {[%clk 0:00:20.4]} 38. a3 {[%clk 0:00:03.7]} 38... Re8
{[%clk 0:00:18.6]} 39. Rd4 {[%clk 0:00:04.2]} 39... Ke6 {[%clk 0:00:17.8]} 40.
Re4+ {[%clk 0:00:04.3]} 40... Kd7 {[%clk 0:00:17.9]} 41. Rd4 {[%clk 0:00:05.2]}
41... Ke6 {[%clk 0:00:13.7]} 42. Re4+ {[%clk 0:00:05.3]} 42... Kf7 {[%clk
0:00:13.9]} 43. Rd4 {[%clk 0:00:05.7]} 43... Re6 {[%clk 0:00:09.5]} 44. h4
{[%clk 0:00:05.9]} 44... h5+ {[%clk 0:00:09.2]} 45. Kg3 {[%clk 0:00:05.9]} 45...
a6 {[%clk 0:00:09.6]} 46. Kf3 {[%clk 0:00:05.6]} 46... Ke7 {[%clk 0:00:08.6]}
47. Rd1 {[%clk 0:00:03.2]} 47... c5 {[%clk 0:00:07.5]} 48. Rd5 {[%clk 0:00:03]}
48... Kd7 {[%clk 0:00:06.6]} 49. f5 {[%clk 0:00:03]} 49... gxf5 {[%clk
0:00:06.4]} 50. Rxf5 {[%clk 0:00:03.9]} 50... b4 {[%clk 0:00:06.6]} 51. axb4
{[%clk 0:00:03.6]} 51... cxb4 {[%clk 0:00:07.5]} 52. Bd4 {[%clk 0:00:04.5]}
52... Kc6 {[%clk 0:00:05.8]} 53. Rxh5 {[%clk 0:00:04.8]} 53... Rg6 {[%clk
0:00:05.7]} 54. Rg5 {[%clk 0:00:04.6]} 54... Rxg5 {[%clk 0:00:06]} 55. hxg5
{[%clk 0:00:05.5]} 55... Kd5 {[%clk 0:00:06.9]} 56. g6 {[%clk 0:00:04.9]} 56...
Bf8 {[%clk 0:00:05.5]} 57. g7 {[%clk 0:00:05.4]} 57... Bxg7 {[%clk 0:00:05.8]}
58. Bxg7 {[%clk 0:00:06.3]} 58... c3 {[%clk 0:00:06.4]} 59. bxc3 {[%clk
0:00:05.2]} 59... b3 {[%clk 0:00:06.4]} 60. Ke2 {[%clk 0:00:05.2]} 60... b2
{[%clk 0:00:03.8]} 61. c4+ {[%clk 0:00:05.2]} 61... Kxc4 {[%clk 0:00:04.7]} 62.
Bxb2 {[%clk 0:00:05.7]} 62... a5 {[%clk 0:00:05.6]} 63. Bh8 {[%clk 0:00:05.2]}
63... a4 {[%clk 0:00:06.5]} 64. Kd2 {[%clk 0:00:05.9]} 64... a3 {[%clk
0:00:04.7]} 65. Kc1 {[%clk 0:00:06.3]} 65... a2 {[%clk 0:00:05.2]} 66. Kb2
{[%clk 0:00:06.9]} 66... a1=Q+ {[%clk 0:00:05.5]} 67. Kxa1 {[%clk 0:00:07.5]}
1/2-1/2

[Event "*** Titled Tuesday Blitz"]
[Site "Chess.com"]
[Date "2020.04.21"]
[Round "2"]
[White "Ellaijio_B"]
[Black "evgenyermolaev"]
[Result "0-1"]
[WhiteElo "2667"]
[BlackElo "2475"]
[TimeControl "180+1"]
[EndTime "10:19:02 PDT"]
[Termination "evgenyermolaev won by checkmate"]

1. e4 {[%clk 0:03:00.9]} 1... c5 {[%clk 0:02:59.8]} 2. Nf3 {[%clk 0:02:47.2]}
2... d6 {[%clk 0:02:59.7]} 3. d4 {[%clk 0:02:47.6]} 3... cxd4 {[%clk 0:02:59.2]}
4. Nxd4 {[%clk 0:02:48.4]} 4... Nf6 {[%clk 0:02:58.7]} 5. Nc3 {[%clk 0:02:45.9]}
5... a6 {[%clk 0:02:58.9]} 6. f4 {[%clk 0:02:45.2]} 6... e5 {[%clk 0:02:58.5]}
7. Nf3 {[%clk 0:02:40.1]} 7... Qc7 {[%clk 0:02:57.8]} 8. Bd3 {[%clk 0:02:34.5]}
8... Be7 {[%clk 0:02:56.8]} 9. O-O {[%clk 0:02:34.4]} 9... Nc6 {[%clk
0:02:54.1]} 10. Kh1 {[%clk 0:02:30]} 10... b5 {[%clk 0:02:39.9]} 11. a3 {[%clk
0:02:28.9]} 11... Bb7 {[%clk 0:02:37.2]} 12. Qe1 {[%clk 0:02:13.1]} 12... O-O
{[%clk 0:02:10.4]} 13. Nd5 {[%clk 0:01:56.7]} 13... Nxd5 {[%clk 0:02:07.1]} 14.
exd5 {[%clk 0:01:57.6]} 14... Nd4 {[%clk 0:02:05.2]} 15. Nxd4 {[%clk 0:01:48.1]}
15... exd4 {[%clk 0:02:06.1]} 16. Qe4 {[%clk 0:01:46.8]} 16... f5 {[%clk
0:02:04.9]} 17. Qxd4 {[%clk 0:01:39.4]} 17... Bf6 {[%clk 0:02:04.8]} 18. Qf2
{[%clk 0:01:33.2]} 18... g6 {[%clk 0:01:56.5]} 19. Be3 {[%clk 0:01:15.1]} 19...
Bxb2 {[%clk 0:01:31.2]} 20. Bd4 {[%clk 0:01:11.9]} 20... Bxd4 {[%clk 0:01:19.8]}
21. Qxd4 {[%clk 0:01:12.8]} 21... Qc5 {[%clk 0:01:20.3]} 22. Qxc5 {[%clk
0:01:08.7]} 22... dxc5 {[%clk 0:01:21.2]} 23. c4 {[%clk 0:01:09.4]} 23... Rfe8
{[%clk 0:00:55.4]} 24. Rfe1 {[%clk 0:01:04.1]} 24... Kf8 {[%clk 0:00:26.1]} 25.
Kg1 {[%clk 0:01:03.2]} 25... Rad8 {[%clk 0:00:13.7]} 26. Kf2 {[%clk 0:00:35]}
26... Rxe1 {[%clk 0:00:11.2]} 27. Kxe1 {[%clk 0:00:35.7]} 27... bxc4 {[%clk
0:00:07.8]} 28. Bxc4 {[%clk 0:00:36.6]} 28... Ke7 {[%clk 0:00:08.7]} 29. g3
{[%clk 0:00:32.5]} 29... Bxd5 {[%clk 0:00:08.9]} 30. Bxa6 {[%clk 0:00:32]} 30...
c4 {[%clk 0:00:06.5]} 31. Rc1 {[%clk 0:00:22.2]} 31... Ra8 {[%clk 0:00:05.3]}
32. Bxc4 {[%clk 0:00:19.6]} 32... Rc8 {[%clk 0:00:05.3]} 33. Kd2 {[%clk
0:00:14.5]} 33... Bxc4 {[%clk 0:00:05.4]} 34. Rb1 {[%clk 0:00:12.5]} 34... Be6
{[%clk 0:00:06.3]} 35. Rb7+ {[%clk 0:00:12]} 35... Bd7 {[%clk 0:00:05.2]} 36.
Rb3 {[%clk 0:00:10.5]} 36... Ra8 {[%clk 0:00:04.5]} 37. Re3+ {[%clk 0:00:10.3]}
37... Kf6 {[%clk 0:00:03.8]} 38. Kc2 {[%clk 0:00:10.4]} 38... h6 {[%clk
0:00:02.4]} 39. Kb2 {[%clk 0:00:10.6]} 39... Be6 {[%clk 0:00:03]} 40. Rd3 {[%clk
0:00:09.8]} 40... Rb8+ {[%clk 0:00:03.6]} 41. Kc2 {[%clk 0:00:08.8]} 41... g5
{[%clk 0:00:04.1]} 42. Rd6 {[%clk 0:00:07.4]} 42... Ra8 {[%clk 0:00:03.8]} 43.
Kb2 {[%clk 0:00:07]} 43... gxf4 {[%clk 0:00:04.2]} 44. gxf4 {[%clk 0:00:07.7]}
44... Ra4 {[%clk 0:00:04.8]} 45. Rd8 {[%clk 0:00:06]} 45... Rxf4 {[%clk
0:00:05.2]} 46. Ra8 {[%clk 0:00:06.3]} 46... Rh4 {[%clk 0:00:05.5]} 47. a4
{[%clk 0:00:06.2]} 47... Rxh2+ {[%clk 0:00:06.1]} 48. Kc3 {[%clk 0:00:07.1]}
48... f4 {[%clk 0:00:06.4]} 49. a5 {[%clk 0:00:08]} 49... f3 {[%clk 0:00:06.7]}
50. Rf8+ {[%clk 0:00:07.3]} 50... Bf7 {[%clk 0:00:06.9]} 51. Rd8 {[%clk
0:00:05.1]} 51... f2 {[%clk 0:00:06.9]} 52. Rd1 {[%clk 0:00:05.6]} 52... Rg2
{[%clk 0:00:07]} 53. Rf1 {[%clk 0:00:05.3]} 53... Kg5 {[%clk 0:00:06.9]} 54. a6
{[%clk 0:00:05.5]} 54... Bd5 {[%clk 0:00:07.1]} 55. Kd4 {[%clk 0:00:05.7]} 55...
Ba8 {[%clk 0:00:06.7]} 56. Ke3 {[%clk 0:00:06]} 56... Kg4 {[%clk 0:00:06.9]} 57.
Rc1 {[%clk 0:00:04.9]} 57... Kg3 {[%clk 0:00:06.6]} 58. Rc8 {[%clk 0:00:02.7]}
58... f1=Q {[%clk 0:00:06.5]} 59. Rxa8 {[%clk 0:00:03]} 59... Re2+ {[%clk
0:00:06.6]} 60. Kd4 {[%clk 0:00:03.9]} 60... Qf4+ {[%clk 0:00:06.5]} 61. Kc5
{[%clk 0:00:04.8]} 61... Qc1+ {[%clk 0:00:05.9]} 62. Kb6 {[%clk 0:00:05.7]}
62... Rb2+ {[%clk 0:00:06.1]} 63. Ka7 {[%clk 0:00:06.6]} 63... Qc7# {[%clk
0:00:06]} 0-1